[Event "*** Titled Tuesday Blitz"]
[Site "Chess.com"]
[Date "2020.11.10"]
[Round "2"]
[White "Rud_Makarian"]
[Black "gilbert_gm"]
[Result "1-0"]
[WhiteElo "2825"]
[BlackElo "2540"]
[TimeControl "180+1"]
[EndTime "10:21:16 PST"]
[Termination "Rud_Makarian won by checkmate"]

1. d4 {[%clk 0:03:00.9]} 1... d5 {[%clk 0:02:58.6]} 2. c4 {[%clk 0:03:01.3]}
2... e6 {[%clk 0:02:58.2]} 3. Nf3 {[%clk 0:03:01.9]} 3... Nf6 {[%clk 0:02:58.1]}
4. Nc3 {[%clk 0:03:02.4]} 4... Bb4 {[%clk 0:02:57.8]} 5. cxd5 {[%clk 0:03:02.1]}
5... exd5 {[%clk 0:02:56.5]} 6. Bf4 {[%clk 0:03:02.5]} 6... O-O {[%clk
0:02:53.6]} 7. e3 {[%clk 0:03:01.6]} 7... c5 {[%clk 0:02:43.2]} 8. dxc5 {[%clk
0:03:00.6]} 8... Ne4 {[%clk 0:02:27]} 9. a3 {[%clk 0:01:12.5]} 9... Bxc3+ {[%clk
0:02:14.6]} 10. bxc3 {[%clk 0:01:13.4]} 10... Qa5 {[%clk 0:02:04.8]} 11. Rc1
{[%clk 0:01:08.6]} 11... Qxa3 {[%clk 0:01:48.4]} 12. Bd3 {[%clk 0:01:03.2]}
12... Qxc5 {[%clk 0:01:46.4]} 13. O-O {[%clk 0:01:00.4]} 13... Nc6 {[%clk
0:01:44.3]} 14. c4 {[%clk 0:00:58.6]} 14... Be6 {[%clk 0:01:35.8]} 15. Qe2
{[%clk 0:00:39.3]} 15... Nf6 {[%clk 0:01:16.4]} 16. cxd5 {[%clk 0:00:36.7]}
16... Qxd5 {[%clk 0:01:17.3]} 17. Ng5 {[%clk 0:00:33.6]} 17... h6 {[%clk
0:01:08.9]} 18. Bc4 {[%clk 0:00:29.8]} 18... Qf5 {[%clk 0:00:48.9]} 19. Nxe6
{[%clk 0:00:28.5]} 19... fxe6 {[%clk 0:00:49.8]} 20. Qa2 {[%clk 0:00:26.1]}
20... Rae8 {[%clk 0:00:43]} 21. Rfd1 {[%clk 0:00:23.6]} 21... Kh8 {[%clk
0:00:25.5]} 22. f3 {[%clk 0:00:20.5]} 22... e5 {[%clk 0:00:23.2]} 23. Bg3 {[%clk
0:00:20.7]} 23... e4 {[%clk 0:00:23.3]} 24. f4 {[%clk 0:00:20.3]} 24... a6
{[%clk 0:00:20.2]} 25. h3 {[%clk 0:00:14.2]} 25... Nb4 {[%clk 0:00:15.9]} 26.
Qb3 {[%clk 0:00:14.2]} 26... Nd3 {[%clk 0:00:16]} 27. Bxd3 {[%clk 0:00:12]}
27... exd3 {[%clk 0:00:16.9]} 28. Qxd3 {[%clk 0:00:12.4]} 28... Ne4 {[%clk
0:00:13]} 29. Be1 {[%clk 0:00:11.2]} 29... b5 {[%clk 0:00:11]} 30. Rc6 {[%clk
0:00:07]} 30... Qf7 {[%clk 0:00:07.7]} 31. Rxa6 {[%clk 0:00:05.6]} 31... Nf6
{[%clk 0:00:06.4]} 32. Qxb5 {[%clk 0:00:05.3]} 32... Rxe3 {[%clk 0:00:06.6]} 33.
Bf2 {[%clk 0:00:05.7]} 33... Re4 {[%clk 0:00:06.9]} 34. Qf5 {[%clk 0:00:05.9]}
34... Rfe8 {[%clk 0:00:07]} 35. Bh4 {[%clk 0:00:05.1]} 35... Qh5 {[%clk
0:00:06]} 36. Qxh5 {[%clk 0:00:03.8]} 36... Nxh5 {[%clk 0:00:06.9]} 37. g3
{[%clk 0:00:03.2]} 37... Re2 {[%clk 0:00:05.3]} 38. Rf1 {[%clk 0:00:03]} 38...
Rc2 {[%clk 0:00:05.1]} 39. Rf2 {[%clk 0:00:03.5]} 39... Rc1+ {[%clk 0:00:05.3]}
40. Kg2 {[%clk 0:00:03.2]} 40... Rc3 {[%clk 0:00:06.2]} 41. g4 {[%clk
0:00:03.1]} 41... Nf6 {[%clk 0:00:04.4]} 42. Bxf6 {[%clk 0:00:03.7]} 42... gxf6
{[%clk 0:00:05.3]} 43. Rxf6 {[%clk 0:00:04.2]} 43... Ree3 {[%clk 0:00:05.8]} 44.
Rxh6+ {[%clk 0:00:04]} 44... Kg7 {[%clk 0:00:06.7]} 45. Rh5 {[%clk 0:00:04.3]}
45... Rg3+ {[%clk 0:00:06.7]} 46. Kh2 {[%clk 0:00:05]} 46... Rge3 {[%clk
0:00:06.7]} 47. f5 {[%clk 0:00:05.2]} 47... Kf6 {[%clk 0:00:06.9]} 48. Rh6+
{[%clk 0:00:05]} 48... Kg5 {[%clk 0:00:06.7]} 49. Rh5+ {[%clk 0:00:05.1]} 49...
Kf6 {[%clk 0:00:07]} 50. g5+ {[%clk 0:00:05.4]} 50... Kg7 {[%clk 0:00:07]} 51.
f6+ {[%clk 0:00:06]} 51... Kg6 {[%clk 0:00:07.1]} 52. f7 {[%clk 0:00:05.1]}
52... Kxh5 {[%clk 0:00:05.2]} 53. f8=Q {[%clk 0:00:05.4]} 53... Rxh3+ {[%clk
0:00:06.1]} 54. Kg2 {[%clk 0:00:05.7]} 54... Rhg3+ {[%clk 0:00:06.1]} 55. Kf1
{[%clk 0:00:05.8]} 55... Rxg5 {[%clk 0:00:04.6]} 56. Qh8+ {[%clk 0:00:05]} 56...
Kg4 {[%clk 0:00:04.9]} 57. Qxc3 {[%clk 0:00:03.5]} 57... Rf5 {[%clk 0:00:05.1]}
58. Qd4+ {[%clk 0:00:03]} 58... Kh3 {[%clk 0:00:06]} 59. Rxf5 {[%clk 0:00:02.5]}
59... Kg3 {[%clk 0:00:06.9]} 60. Qf4+ {[%clk 0:00:02.7]} 60... Kh3 {[%clk
0:00:07.3]} 61. Rh5# {[%clk 0:00:03.6]} 1-0

[Event "*** Titled Tuesday Blitz"]
[Site "Chess.com"]
[Date "2020.11.10"]
[Round "2"]
[White "esapunov"]
[Black "LawrenceTrent"]
[Result "0-1"]
[WhiteElo "2698"]
[BlackElo "2515"]
[TimeControl "180+1"]
[EndTime "10:21:20 PST"]
[Termination "LawrenceTrent won by resignation"]

1. c4 {[%clk 0:03:00.9]} 1... e6 {[%clk 0:02:39.4]} 2. Nf3 {[%clk 0:03:00.3]}
2... Nf6 {[%clk 0:02:36.1]} 3. Nc3 {[%clk 0:02:59.9]} 3... d5 {[%clk 0:02:32]}
4. d4 {[%clk 0:02:59.6]} 4... dxc4 {[%clk 0:02:30.9]} 5. e3 {[%clk 0:02:59]}
5... a6 {[%clk 0:02:29.9]} 6. a4 {[%clk 0:02:55.9]} 6... b6 {[%clk 0:02:29.7]}
7. Bxc4 {[%clk 0:02:55.6]} 7... Bb7 {[%clk 0:02:30.6]} 8. Qe2 {[%clk 0:02:56]}
8... Bb4 {[%clk 0:02:29.6]} 9. O-O {[%clk 0:02:55.3]} 9... O-O {[%clk
0:02:30.2]} 10. Rd1 {[%clk 0:02:52.2]} 10... Nbd7 {[%clk 0:02:30.2]} 11. Bd3
{[%clk 0:02:39.8]} 11... Qe7 {[%clk 0:02:15.3]} 12. e4 {[%clk 0:02:38.4]} 12...
e5 {[%clk 0:02:15.7]} 13. d5 {[%clk 0:02:21.3]} 13... c6 {[%clk 0:02:12.9]} 14.
dxc6 {[%clk 0:02:06.1]} 14... Bxc6 {[%clk 0:02:11.2]} 15. Na2 {[%clk 0:01:55.7]}
15... Bc5 {[%clk 0:02:09.5]} 16. b3 {[%clk 0:01:51.4]} 16... Rfd8 {[%clk
0:02:07.3]} 17. Bg5 {[%clk 0:01:46.2]} 17... h6 {[%clk 0:02:05.3]} 18. Bh4
{[%clk 0:01:46.1]} 18... Qe6 {[%clk 0:02:04.5]} 19. Rab1 {[%clk 0:01:32.1]}
19... Be7 {[%clk 0:01:42.2]} 20. h3 {[%clk 0:01:19.8]} 20... Nh5 {[%clk
0:01:33.6]} 21. Bc4 {[%clk 0:01:16.2]} 21... Nf4 {[%clk 0:01:21.9]} 22. Qf1
{[%clk 0:01:07.6]} 22... Nxh3+ {[%clk 0:01:11.3]} 23. gxh3 {[%clk 0:00:48.9]}
23... Qg6+ {[%clk 0:01:11]} 24. Kh2 {[%clk 0:00:48.6]} 24... Bxh4 {[%clk
0:01:04.8]} 25. Nxh4 {[%clk 0:00:31]} 25... Qxe4 {[%clk 0:00:47.7]} 26. Ng2
{[%clk 0:00:31.1]} 26... Nc5 {[%clk 0:00:38.6]} 27. Nb4 {[%clk 0:00:25.4]} 27...
Bb7 {[%clk 0:00:34]} 28. Nd3 {[%clk 0:00:24.5]} 28... Nxa4 {[%clk 0:00:29.1]}
29. Re1 {[%clk 0:00:22.5]} 29... Qd4 {[%clk 0:00:28.5]} 30. Nxe5 {[%clk
0:00:22.5]} 30... Nc3 {[%clk 0:00:24.9]} 31. Nxf7 {[%clk 0:00:22.5]} 31... b5
{[%clk 0:00:23.8]} 32. Be6 {[%clk 0:00:19.4]} 32... Re8 {[%clk 0:00:21.9]} 33.
Nxh6+ {[%clk 0:00:16.7]} 33... Kh7 {[%clk 0:00:22.3]} 34. Ng4 {[%clk 0:00:15.7]}
34... Qd6+ {[%clk 0:00:20.7]} 35. Kg1 {[%clk 0:00:14.8]} 35... Nxb1 {[%clk
0:00:19.7]} 36. Bf5+ {[%clk 0:00:14.1]} 36... g6 {[%clk 0:00:20.2]} 37. Bxb1
{[%clk 0:00:13.9]} 37... Rxe1 {[%clk 0:00:20.4]} 38. Qxe1 {[%clk 0:00:14.3]}
38... Rf8 {[%clk 0:00:20.9]} 39. Qe3 {[%clk 0:00:11.7]} 39... Kg8 {[%clk
0:00:14.7]} 40. Bd3 {[%clk 0:00:10.3]} 40... Rf3 {[%clk 0:00:13]} 41. Qe8+
{[%clk 0:00:09.2]} 41... Rf8 {[%clk 0:00:13.5]} 42. Qxg6+ {[%clk 0:00:08.6]}
42... Qxg6 {[%clk 0:00:13.9]} 43. Bxg6 {[%clk 0:00:09.3]} 43... Rf3 {[%clk
0:00:13.4]} 44. b4 {[%clk 0:00:08.8]} 44... Rxh3 {[%clk 0:00:13.3]} 45. N4e3
{[%clk 0:00:08.2]} 45... Rh6 {[%clk 0:00:12.7]} 46. Bf5 {[%clk 0:00:08.4]} 46...
Rd6 {[%clk 0:00:11.8]} 47. f4 {[%clk 0:00:08.5]} 47... Rd4 {[%clk 0:00:11.8]}
48. Be6+ {[%clk 0:00:09.1]} 48... Kf8 {[%clk 0:00:10]} 49. f5 {[%clk 0:00:09.6]}
49... Rxb4 {[%clk 0:00:09.9]} 50. Kf2 {[%clk 0:00:09.9]} 50... Rd4 {[%clk
0:00:09.6]} 51. Ne1 {[%clk 0:00:09.1]} 51... a5 {[%clk 0:00:08.9]} 52. N1c2
{[%clk 0:00:09.4]} 52... Rd2+ {[%clk 0:00:09.1]} 53. Kg3 {[%clk 0:00:09]} 53...
b4 {[%clk 0:00:08.6]} 54. Kf4 {[%clk 0:00:09.2]} 54... Rd3 {[%clk 0:00:08.2]}
55. Ke5 {[%clk 0:00:09]} 55... b3 {[%clk 0:00:08.6]} 56. Nd4 {[%clk 0:00:07.9]}
56... Rxe3+ {[%clk 0:00:08.5]} 57. Kd6 {[%clk 0:00:08.2]} 57... b2 {[%clk
0:00:08.8]} 58. Ba2 {[%clk 0:00:08.4]} 58... Re1 {[%clk 0:00:08.3]} 59. Kc5
{[%clk 0:00:08.6]} 59... b1=Q {[%clk 0:00:07.2]} 60. Bxb1 {[%clk 0:00:09.2]}
60... Rxb1 {[%clk 0:00:06.9]} 61. Ne6+ {[%clk 0:00:09.8]} 61... Ke7 {[%clk
0:00:06.8]} 62. Ng5 {[%clk 0:00:09.9]} 62... a4 {[%clk 0:00:06.6]} 63. Ne6
{[%clk 0:00:08.7]} 63... a3 {[%clk 0:00:07.5]} 64. Nd4 {[%clk 0:00:08.9]} 64...
a2 {[%clk 0:00:07.7]} 65. f6+ {[%clk 0:00:09.7]} 65... Kxf6 {[%clk 0:00:07.3]}
0-1

[Event "*** Titled Tuesday Blitz"]
[Site "Chess.com"]
[Date "2020.11.10"]
[Round "2"]
[White "Vamostodorecto"]
[Black "GalperinPlaton"]
[Result "0-1"]
[WhiteElo "2347"]
[BlackElo "2880"]
[TimeControl "180+1"]
[EndTime "10:21:20 PST"]
[Termination "GalperinPlaton won on time"]

1. d4 {[%clk 0:03:00.9]} 1... c6 {[%clk 0:03:00.9]} 2. c4 {[%clk 0:03:00]} 2...
d6 {[%clk 0:03:01.8]} 3. Nc3 {[%clk 0:03:00.3]} 3... Nd7 {[%clk 0:03:02.7]} 4.
e4 {[%clk 0:03:00.3]} 4... h6 {[%clk 0:03:03.6]} 5. Nf3 {[%clk 0:02:59.5]} 5...
g5 {[%clk 0:03:04.2]} 6. Be3 {[%clk 0:02:56.6]} 6... Bg7 {[%clk 0:03:04.6]} 7.
Qd2 {[%clk 0:02:56.3]} 7... Nf8 {[%clk 0:03:05]} 8. Bd3 {[%clk 0:02:54.3]} 8...
Ng6 {[%clk 0:03:04.3]} 9. O-O {[%clk 0:02:53]} 9... g4 {[%clk 0:03:04.2]} 10.
Ne1 {[%clk 0:02:50]} 10... h5 {[%clk 0:03:04.2]} 11. f4 {[%clk 0:02:50.3]} 11...
gxf3 {[%clk 0:03:05.1]} 12. Nxf3 {[%clk 0:02:48.2]} 12... c5 {[%clk 0:03:04.1]}
13. d5 {[%clk 0:02:43.4]} 13... Nh6 {[%clk 0:03:01.4]} 14. e5 {[%clk 0:02:29.4]}
14... Ng4 {[%clk 0:02:47.2]} 15. e6 {[%clk 0:02:21]} 15... N6e5 {[%clk
0:02:39.4]} 16. Nxe5 {[%clk 0:02:13.4]} 16... Nxe5 {[%clk 0:02:40.3]} 17. exf7+
{[%clk 0:02:11.4]} 17... Kf8 {[%clk 0:02:39.1]} 18. Ne4 {[%clk 0:02:01.5]} 18...
Qd7 {[%clk 0:02:13.6]} 19. Ng5 {[%clk 0:01:58.8]} 19... Qa4 {[%clk 0:02:01.1]}
20. b3 {[%clk 0:01:28.7]} 20... Qb4 {[%clk 0:01:57.7]} 21. Qxb4 {[%clk
0:01:19.4]} 21... cxb4 {[%clk 0:01:58.6]} 22. Nh7+ {[%clk 0:01:20]} 22... Rxh7
{[%clk 0:01:56.8]} 23. Bxh7 {[%clk 0:01:20.9]} 23... Bf6 {[%clk 0:01:55.9]} 24.
Bg8 {[%clk 0:01:08.7]} 24... Ng4 {[%clk 0:01:42.9]} 25. Bd2 {[%clk 0:00:56.9]}
25... Bg7 {[%clk 0:01:30]} 26. Rae1 {[%clk 0:00:48]} 26... Nf6 {[%clk 0:01:28]}
27. Bxb4 {[%clk 0:00:41.5]} 27... Bd7 {[%clk 0:01:07.1]} 28. Bc3 {[%clk
0:00:39]} 28... h4 {[%clk 0:01:07.1]} 29. h3 {[%clk 0:00:33.1]} 29... b5 {[%clk
0:01:06.8]} 30. Rf4 {[%clk 0:00:28]} 30... Rc8 {[%clk 0:01:03.7]} 31. Rxh4
{[%clk 0:00:24.9]} 31... bxc4 {[%clk 0:00:59]} 32. bxc4 {[%clk 0:00:25.8]} 32...
Bf5 {[%clk 0:00:54.7]} 33. Rf1 {[%clk 0:00:24.5]} 33... Bd3 {[%clk 0:00:53.9]}
34. Bxf6 {[%clk 0:00:19.1]} 34... Bxf6 {[%clk 0:00:51.6]} 35. Rxf6 {[%clk
0:00:18.1]} 35... exf6 {[%clk 0:00:52.5]} 36. Rh6 {[%clk 0:00:12.2]} 36... Kg7
{[%clk 0:00:51.8]} 37. Rh4 {[%clk 0:00:10.9]} 37... Bxc4 {[%clk 0:00:42]} 38.
Rh7+ {[%clk 0:00:09.1]} 38... Kf8 {[%clk 0:00:42.5]} 39. Rh6 {[%clk 0:00:08.7]}
39... Ke7 {[%clk 0:00:38.4]} 40. Rh5 {[%clk 0:00:08.9]} 40... Bxa2 {[%clk
0:00:32.5]} 41. Kf2 {[%clk 0:00:06.9]} 41... Bb1 {[%clk 0:00:30.6]} 42. Ke3
{[%clk 0:00:06]} 42... Kf8 {[%clk 0:00:30.4]} 43. Rh4 {[%clk 0:00:06.4]} 43...
a5 {[%clk 0:00:24.7]} 44. Ra4 {[%clk 0:00:05.7]} 44... Rc5 {[%clk 0:00:24.9]}
45. Kd4 {[%clk 0:00:02.5]} 45... Rb5 {[%clk 0:00:17.2]} 46. Ra3 {[%clk
0:00:03.4]} 46... Bg6 {[%clk 0:00:14.4]} 47. Ke3 {[%clk 0:00:03]} 47... Rxd5
{[%clk 0:00:12.9]} 48. Ra4 {[%clk 0:00:02.1]} 48... Rc5 {[%clk 0:00:12.2]} 49.
Kf4 {[%clk 0:00:02.4]} 49... d5 {[%clk 0:00:09.7]} 50. h4 {[%clk 0:00:01.8]}
50... Rb5 {[%clk 0:00:04.2]} 51. Ke3 {[%clk 0:00:00.9]} 51... Bxf7 {[%clk
0:00:03.7]} 52. Kd4 {[%clk 0:00:01.8]} 52... Bxg8 {[%clk 0:00:03.6]} 53. h5
{[%clk 0:00:01.9]} 53... Rb4+ {[%clk 0:00:04.4]} 54. Rxb4 {[%clk 0:00:02.1]}
54... axb4 {[%clk 0:00:05.3]} 0-1

[Event "*** Titled Tuesday Blitz"]
[Site "Chess.com"]
[Date "2020.11.10"]
[Round "2"]
[White "Shushik"]
[Black "profofchess"]
[Result "1/2-1/2"]
[WhiteElo "2241"]
[BlackElo "2438"]
[TimeControl "180+1"]
[EndTime "10:21:22 PST"]
[Termination "Game drawn - insufficient material"]

1. e4 {[%clk 0:02:59.6]} 1... e6 {[%clk 0:02:59.4]} 2. d4 {[%clk 0:02:58.9]}
2... d5 {[%clk 0:02:59.3]} 3. Nd2 {[%clk 0:02:59.4]} 3... Nf6 {[%clk 0:02:59]}
4. e5 {[%clk 0:02:59.4]} 4... Nfd7 {[%clk 0:02:58.9]} 5. Bd3 {[%clk 0:03:00]}
5... c5 {[%clk 0:02:59.4]} 6. c3 {[%clk 0:03:00.3]} 6... Nc6 {[%clk 0:03:00]} 7.
Ngf3 {[%clk 0:03:00.4]} 7... g6 {[%clk 0:02:59]} 8. O-O {[%clk 0:03:00]} 8...
Bg7 {[%clk 0:02:51.7]} 9. Re1 {[%clk 0:02:59.5]} 9... O-O {[%clk 0:02:45.9]} 10.
b3 {[%clk 0:02:53.5]} 10... f6 {[%clk 0:02:39.1]} 11. exf6 {[%clk 0:02:44.7]}
11... Qxf6 {[%clk 0:02:40]} 12. Bb2 {[%clk 0:02:38.5]} 12... e5 {[%clk
0:02:14.4]} 13. dxe5 {[%clk 0:02:34.2]} 13... Ndxe5 {[%clk 0:02:11.2]} 14. Be2
{[%clk 0:02:32.6]} 14... Bg4 {[%clk 0:02:02]} 15. Rf1 {[%clk 0:02:25.1]} 15...
Nxf3+ {[%clk 0:01:52.2]} 16. Nxf3 {[%clk 0:02:24]} 16... Rad8 {[%clk 0:01:40.6]}
17. h3 {[%clk 0:02:20.8]} 17... Bf5 {[%clk 0:01:36.5]} 18. Qd2 {[%clk
0:02:09.2]} 18... Be4 {[%clk 0:01:15.6]} 19. Rad1 {[%clk 0:01:55.2]} 19... Kh8
{[%clk 0:01:12.1]} 20. Qg5 {[%clk 0:01:25.2]} 20... Qf7 {[%clk 0:00:54.2]} 21.
Qe3 {[%clk 0:01:18]} 21... Bxf3 {[%clk 0:00:41.2]} 22. Bxf3 {[%clk 0:01:17.1]}
22... d4 {[%clk 0:00:41.4]} 23. Qc1 {[%clk 0:01:11.8]} 23... Ne5 {[%clk
0:00:36.1]} 24. Be4 {[%clk 0:01:10.3]} 24... d3 {[%clk 0:00:26.7]} 25. c4 {[%clk
0:01:07.3]} 25... d2 {[%clk 0:00:13.1]} 26. Rxd2 {[%clk 0:01:05.6]} 26... Rxd2
{[%clk 0:00:08.3]} 27. Qxd2 {[%clk 0:01:05]} 27... b6 {[%clk 0:00:06.4]} 28. Bd5
{[%clk 0:00:59.1]} 28... Qf6 {[%clk 0:00:05.5]} 29. Ba1 {[%clk 0:00:53.6]} 29...
Qd6 {[%clk 0:00:03.5]} 30. Re1 {[%clk 0:00:49.2]} 30... Nd7 {[%clk 0:00:03.6]}
31. Bxg7+ {[%clk 0:00:47.7]} 31... Kxg7 {[%clk 0:00:04.5]} 32. Qc3+ {[%clk
0:00:47.6]} 32... Nf6 {[%clk 0:00:03.2]} 33. Qe5 {[%clk 0:00:45.3]} 33... Qxe5
{[%clk 0:00:02.4]} 34. Rxe5 {[%clk 0:00:45.1]} 34... Re8 {[%clk 0:00:02.7]} 35.
Rxe8 {[%clk 0:00:42]} 35... Nxe8 {[%clk 0:00:03.6]} 36. Kf1 {[%clk 0:00:41.6]}
36... Nd6 {[%clk 0:00:03.6]} 37. Ke2 {[%clk 0:00:41.3]} 37... g5 {[%clk
0:00:03.9]} 38. Ke3 {[%clk 0:00:40.5]} 38... Kf6 {[%clk 0:00:03.4]} 39. f4
{[%clk 0:00:37.5]} 39... h6 {[%clk 0:00:03.4]} 40. fxg5+ {[%clk 0:00:36.3]}
40... Kxg5 {[%clk 0:00:03.7]} 41. Kf3 {[%clk 0:00:34.7]} 41... h5 {[%clk
0:00:02.4]} 42. g3 {[%clk 0:00:33.5]} 42... Nf5 {[%clk 0:00:02.1]} 43. h4+
{[%clk 0:00:31.3]} 43... Kf6 {[%clk 0:00:02.4]} 44. Kf4 {[%clk 0:00:31.4]} 44...
Nd4 {[%clk 0:00:02.5]} 45. Be4 {[%clk 0:00:23.5]} 45... Ne2+ {[%clk 0:00:01.9]}
46. Kf3 {[%clk 0:00:23.8]} 46... Nc3 {[%clk 0:00:01.7]} 47. Bd3 {[%clk
0:00:22.6]} 47... Nxa2 {[%clk 0:00:01.4]} 48. Kf4 {[%clk 0:00:20.8]} 48... Nb4
{[%clk 0:00:01.1]} 49. Be2 {[%clk 0:00:20.6]} 49... Nc6 {[%clk 0:00:01.3]} 50.
Bxh5 {[%clk 0:00:19.8]} 50... Nd4 {[%clk 0:00:01.7]} 51. Bd1 {[%clk 0:00:19.4]}
51... a6 {[%clk 0:00:01.5]} 52. g4 {[%clk 0:00:19.3]} 52... b5 {[%clk 0:00:02]}
53. cxb5 {[%clk 0:00:18.8]} 53... axb5 {[%clk 0:00:01.8]} 54. h5 {[%clk
0:00:19]} 54... Kg7 {[%clk 0:00:01.8]} 55. g5 {[%clk 0:00:18.5]} 55... c4 {[%clk
0:00:02.2]} 56. bxc4 {[%clk 0:00:17.7]} 56... bxc4 {[%clk 0:00:02.6]} 57. Ke4
{[%clk 0:00:17.3]} 57... Ne6 {[%clk 0:00:02.7]} 58. g6 {[%clk 0:00:17.4]} 58...
Nc5+ {[%clk 0:00:02.3]} 59. Kd5 {[%clk 0:00:16.8]} 59... Nd3 {[%clk 0:00:01.9]}
60. Kd4 {[%clk 0:00:15.3]} 60... Nf2 {[%clk 0:00:01.7]} 61. Bc2 {[%clk
0:00:14.4]} 61... Nh3 {[%clk 0:00:01.3]} 62. Kxc4 {[%clk 0:00:14.1]} 62... Nf4
{[%clk 0:00:01.6]} 63. Bd1 {[%clk 0:00:13.2]} 63... Nxg6 {[%clk 0:00:01.9]} 64.
hxg6 {[%clk 0:00:13.3]} 64... Kxg6 {[%clk 0:00:02.8]} 1/2-1/2

[Event "*** Titled Tuesday Blitz"]
[Site "Chess.com"]
[Date "2020.11.10"]
[Round "2"]
[White "NikolaGry"]
[Black "Fortitudine"]
[Result "1/2-1/2"]
[WhiteElo "2621"]
[BlackElo "2283"]
[TimeControl "180+1"]
[EndTime "10:21:27 PST"]
[Termination "Game drawn by repetition"]

1. d4 {[%clk 0:03:00.9]} 1... Nf6 {[%clk 0:02:59.7]} 2. Nf3 {[%clk 0:02:59.9]}
2... g6 {[%clk 0:02:57.1]} 3. c3 {[%clk 0:02:59.7]} 3... Bg7 {[%clk 0:02:56.5]}
4. Bf4 {[%clk 0:02:59.8]} 4... b6 {[%clk 0:02:55]} 5. h3 {[%clk 0:02:59.9]} 5...
O-O {[%clk 0:02:54.8]} 6. e3 {[%clk 0:03:00.1]} 6... d6 {[%clk 0:02:54.5]} 7.
Nbd2 {[%clk 0:02:58.9]} 7... c5 {[%clk 0:02:46.5]} 8. Be2 {[%clk 0:02:57.9]}
8... Ba6 {[%clk 0:02:46.5]} 9. O-O {[%clk 0:02:54.6]} 9... Qc8 {[%clk
0:02:44.6]} 10. a4 {[%clk 0:02:52.8]} 10... Bxe2 {[%clk 0:02:44.1]} 11. Qxe2
{[%clk 0:02:52.4]} 11... Qa6 {[%clk 0:02:44.6]} 12. Qb5 {[%clk 0:02:51.8]} 12...
Nd5 {[%clk 0:02:29.6]} 13. Bg3 {[%clk 0:02:44.9]} 13... Nc7 {[%clk 0:02:27.3]}
14. Qb3 {[%clk 0:02:44.7]} 14... Qb7 {[%clk 0:02:13.9]} 15. Rfe1 {[%clk
0:02:35.8]} 15... Nc6 {[%clk 0:02:10.9]} 16. h4 {[%clk 0:02:31.6]} 16... Rac8
{[%clk 0:02:07.4]} 17. h5 {[%clk 0:02:30.5]} 17... Na5 {[%clk 0:02:03.8]} 18.
Qd1 {[%clk 0:02:23.9]} 18... Ne6 {[%clk 0:01:52.8]} 19. Qe2 {[%clk 0:02:06.2]}
19... Rfe8 {[%clk 0:01:47.6]} 20. b4 {[%clk 0:01:58.4]} 20... cxb4 {[%clk
0:01:38.7]} 21. cxb4 {[%clk 0:01:57.8]} 21... Nc6 {[%clk 0:01:26.1]} 22. Rab1
{[%clk 0:01:53.9]} 22... d5 {[%clk 0:01:13.1]} 23. hxg6 {[%clk 0:01:51]} 23...
hxg6 {[%clk 0:01:12.1]} 24. Rb2 {[%clk 0:01:39.2]} 24... Nb8 {[%clk 0:00:52.2]}
25. Ne5 {[%clk 0:01:31.5]} 25... Nd7 {[%clk 0:00:36.2]} 26. Ndf3 {[%clk
0:01:27.9]} 26... Nf6 {[%clk 0:00:35.5]} 27. Nd2 {[%clk 0:01:12.1]} 27... Ng5
{[%clk 0:00:27.8]} 28. Bh4 {[%clk 0:01:05.2]} 28... Nge4 {[%clk 0:00:21.4]} 29.
Bxf6 {[%clk 0:01:02.7]} 29... exf6 {[%clk 0:00:20.5]} 30. Nxe4 {[%clk
0:01:02.4]} 30... fxe5 {[%clk 0:00:19]} 31. Nd6 {[%clk 0:01:01.9]} 31... Qd7
{[%clk 0:00:17.2]} 32. Nxe8 {[%clk 0:01:01.7]} 32... Rxe8 {[%clk 0:00:17.1]} 33.
dxe5 {[%clk 0:00:58.3]} 33... Rxe5 {[%clk 0:00:18]} 34. Qb5 {[%clk 0:00:55.5]}
34... Qe7 {[%clk 0:00:17.4]} 35. Rd2 {[%clk 0:00:54.5]} 35... d4 {[%clk
0:00:17.2]} 36. Qc6 {[%clk 0:00:49.2]} 36... dxe3 {[%clk 0:00:17.2]} 37. Qc8+
{[%clk 0:00:47.1]} 37... Kh7 {[%clk 0:00:16.1]} 38. Qh3+ {[%clk 0:00:45.8]}
38... Bh6 {[%clk 0:00:14.8]} 39. Rde2 {[%clk 0:00:40]} 39... exf2+ {[%clk
0:00:15]} 40. Kxf2 {[%clk 0:00:40]} 40... Rxe2+ {[%clk 0:00:12.7]} 41. Rxe2
{[%clk 0:00:39.8]} 41... Qxb4 {[%clk 0:00:13.1]} 42. Qf3 {[%clk 0:00:38]} 42...
Qc5+ {[%clk 0:00:12.2]} 43. Kf1 {[%clk 0:00:36.8]} 43... Qc1+ {[%clk 0:00:11.2]}
44. Re1 {[%clk 0:00:36.3]} 44... Qc4+ {[%clk 0:00:11.7]} 45. Kg1 {[%clk
0:00:33.7]} 45... Qc5+ {[%clk 0:00:11.9]} 46. Qf2 {[%clk 0:00:31]} 46... Qd5
{[%clk 0:00:10]} 47. Re7 {[%clk 0:00:27.6]} 47... Kg8 {[%clk 0:00:10.1]} 48.
Re8+ {[%clk 0:00:25.9]} 48... Bf8 {[%clk 0:00:10.3]} 49. Qf6 {[%clk 0:00:20.5]}
49... Qd1+ {[%clk 0:00:08]} 50. Kh2 {[%clk 0:00:20]} 50... Qh5+ {[%clk 0:00:08]}
51. Kg3 {[%clk 0:00:17.2]} 51... Qc5 {[%clk 0:00:05.1]} 52. Qd8 {[%clk
0:00:16.4]} 52... Kg7 {[%clk 0:00:02.3]} 53. Qd3 {[%clk 0:00:12]} 53... Bd6+
{[%clk 0:00:02.6]} 54. Kf3 {[%clk 0:00:05]} 54... Qc6+ {[%clk 0:00:02.8]} 55.
Kf2 {[%clk 0:00:05.2]} 55... Qxe8 {[%clk 0:00:02.9]} 56. Qxd6 {[%clk 0:00:05.2]}
56... Qxa4 {[%clk 0:00:03.6]} 57. Qe5+ {[%clk 0:00:05]} 57... Kg8 {[%clk
0:00:04.2]} 58. Qb8+ {[%clk 0:00:05]} 58... Kh7 {[%clk 0:00:04.5]} 59. Qh2+
{[%clk 0:00:05]} 59... Kg7 {[%clk 0:00:04.1]} 60. Qe5+ {[%clk 0:00:05.2]} 60...
Kg8 {[%clk 0:00:04.8]} 61. Qb8+ {[%clk 0:00:04.9]} 61... Kg7 {[%clk 0:00:05.3]}
62. Qe5+ {[%clk 0:00:04.7]} 1/2-1/2